Cogmind - Beta 14 @@@ ROGUE MODE // 2024.11.05 @ 16:51:29 Player: YA-B01 Result: Destroyed by 0O-JER(R) with Subdweller Laser Performance ------------- Evolutions (0) 0 Regions Visited (2) 400 Robots Destroyed (37) 185 Value Destroyed (623) 623 Prototype IDs (4) 80 Alien Tech Used (0) 0 Bonus (0) 0 TOTAL SCORE: 1288 Bonus ------- None Cogmind --------- Core Integrity 0/250 Matter 7/300 Energy 107/250 System Corruption 0% Temperature Cool (6) Movement Rolling (195) Ox7 Location -10/Subcaves Parts ------- > --- POWER (1) -------- Ion Engine > --- PROPULSION (2) --- Armored Wheel > --- UTILITY (2) ------ Huge Storage Unit Seismic Detector > --- WEAPON (2) ------- Medium Laser Beam Cannon > --- INVENTORY (25) --- Light Treads Light Treads Light Treads Light Treads Light Treads Wheel Armored Wheel Armored Wheel Armored Wheel Heat Sink Sensor Array Improved Terrain Scanner Terrain Scan Processor Transport Network Coupler Core Shielding Power Shielding Hacking Suite Assault Rifle Improved Light Cannon Grenade Launcher Datajack Mining Claw Peak State ------------ > --- POWER ------------ Ion Engine > --- PROPULSION ------- Armored Wheel Armored Wheel > --- UTILITY ---------- Heat Sink Huge Storage Unit > --- WEAPON ----------- Medium Laser Grenade Launcher > --- INVENTORY -------- Ion Engine Light Treads Light Treads Light Treads Light Treads Light Treads Light Treads Wheel Armored Wheel Armored Wheel Sensor Array Improved Terrain Scanner Terrain Scan Processor Seismic Detector Transport Network Coupler Core Shielding Hacking Suite Beam Cannon Assault Rifle Improved Light Cannon Datajack Mining Claw [Rating: 12] Favorites ----------- Power Ion Engine Engine Ion Engine Propulsion Armored Wheel Treads Light Treads Wheel Armored Wheel Utility Huge Storage Unit Device Heat Sink Storage Huge Storage Unit Protection Core Shielding Weapon Medium Laser Energy Gun Medium Laser Energy Cannon Beam Cannon Ballistic Gun Assault Rifle Launcher Grenade Launcher Build | -11 -10 -10 ------- Run | Yrd Mat Sub Slots Evolved . | . . . Power . | . . . Propulsion . | . . . Utility . | . . . Weapon . | . . . Parts Attached 35 | 6 21 8 Power 5 | 1 3 1 Engine 5 | 1 3 1 Core . | . . . Reactor . | . . . Propulsion 12 | 2 7 3 Treads 4 | . 2 2 Leg . | . . . Wheel 8 | 2 5 1 Hover . | . . . Flight . | . . . Utility 7 | 1 3 3 Device 3 | . 1 2 Storage 3 | 1 2 . Processor . | . . . Hackware . | . . . Protection 1 | . . 1 Artifact . | . . . Weapon 11 | 2 8 1 Energy Gun 4 | 2 2 . Energy Cannon 2 | . 1 1 Ballistic Gun 2 | . 2 . Ballistic Cannon . | . . . Launcher 3 | . 3 . Special Weapon . | . . . Impact Weapon . | . . . Slashing Weapon . | . . . Piercing Weapon . | . . . Special Melee Weapon . | . . . Unidentified Prototypes . | . . . Parts Lost 4 | . 2 2 Power 1 | . . 1 Propulsion 2 | . 1 1 Utility . | . . . Weapon 1 | . 1 . Highest Loss Streak 2 | . 2 2 To Critical Strikes . | . . . Average Slot Usage (%) 95 | . 94 99 Engine 13 | . 14 13 Treads 4 | . . 19 Wheel 23 | . 26 8 Device 6 | . 6 5 Storage 16 | . 16 14 Protection 1 | . . 8 Energy Gun 15 | . 15 14 Energy Cannon 2 | . 2 . Ballistic Gun 1 | . 1 . Launcher 8 | . 7 13 Peak Build Rating 12 | 7 12 12 Average Rating 9 | 5 9 10 On Entrance 6 | . 7 12 Naked Turns . | . . . Heaviest Build 91 | 11 91 91 Greatest Support 40 | 26 40 40 Greatest Overweight (x) 7 | . 4 7 Average Overweight (x) 2 | . 2 2 Largest Inventory Capacity 25 | 8 25 25 Average Capacity 20 | 7 20 25 Most Carried 23 | 8 23 23 Average Carried 16 | 4 15 22 Final Capacity 25 | 8 25 25 Final Carried 23 | 8 23 22 Class Distribution -------------------- 100% | Mutant Dominant Class ---------------- Mutant | -10/Materials Mutant | -10/Subcaves Resources | -11 -10 -10 ----------- Run | Yrd Mat Sub Matter Collected 716 | 260 400 56 Remotely . | . . . Salvage Created 828 | 144 649 35 Parts 77 | 15 61 1 Haulers Intercepted 2 | . 2 . Recyclers Shooed 2 | 1 1 . Parts Field Recycled . | . . . Retrieved Matter . | . . . Parts Self-Destructed . | . . . Prevented . | . . . Kills | -11 -10 -10 ------- Run | Yrd Mat Sub Combat Hostiles Destroyed 18 | . 14 4 Guns 11 | . 11 . Cannons 1 | . 1 . AOE 6 | . 2 4 Classes Destroyed 10 | 2 7 1 Worker 3 | . 3 . Builder 3 | . 3 . Tunneler 5 | 4 1 . Hauler 2 | . 2 . Recycler 2 | 1 1 . Operator 1 | . 1 . Watcher 3 | . 3 . Swarmer 9 | . 9 . Grunt 5 | . 5 . Subdweller 4 | . . 4 Best Kill Streak 6 | 5 6 1 Combat Bots Only 4 | . 4 1 Max Kills in Single Turn 2 | 1 2 1 Gunslinging . | . . . Exploded 1 | . 1 1 Melee . | . . . Uniques/NPCs Destroyed . | . . . Combat | -11 -10 -10 -------- Run | Yrd Mat Sub Hostile Shots Fired 83 | . 53 30 Missed 23 | . 13 10 Damage Taken 975 | . 412 563 Core 257 | . 50 207 Absorbed by Shields . | . . . Redirected to Shielding 3 | . . 3 Regen/Repaired (Parts) 51 | . 51 . Core Remaining (%) 100 | 100 . . Volleys Fired 113 | 9 81 23 Largest 2 | 2 2 2 Hottest 110 | 90 110 110 Shots Fired 179 | 18 126 35 Gun 131 | 18 101 12 Cannon 9 | . 6 3 Launcher 39 | . 19 20 Special . | . . . Kinetic 28 | . 28 . Thermal 112 | 18 79 15 Explosive 39 | . 19 20 Electromagnetic . | . . . Robot Hit Streak 14 | 7 8 14 Robot Miss Streak 4 | 1 4 2 Penetration Max . | . . . Secondary Targets 2 | . 2 . Max Gunslinging Chain 1 | . 1 . Shots Hit Robots 98 | 11 62 25 Core Hits 46 | 6 33 7 Critical Kills . | . . . Critical Parts Destroyed . | . . . Critical Strikes 5 | . 4 1 Burn 5 | . 4 1 Melee Attacks . | . . . Impact . | . . . Slashing . | . . . Piercing . | . . . Sneak Attacks . | . . . Combat Hostiles . | . . . Follow-up Attacks . | . . . Damage Inflicted 2508 | 128 1289 1091 Guns 917 | 128 690 99 Cannons 104 | . 70 34 Explosions 1487 | . 529 958 Melee . | . . . Ramming . | . . . Kinetic 234 | . 234 . Thermal 787 | 128 526 133 Explosive 1487 | . 529 958 Electromagnetic . | . . . Impact . | . . . Slashing . | . . . Piercing . | . . . Highest Corruption . | . . . Average Corruption . | . . . Corruption Purged . | . . . Corruption Blocked . | . . . Overload Shots . | . . . Overflow Damage 92 | . 92 . Projectiles . | . . . Explosions 92 | . 92 . Melee . | . . . Knockbacks . | . . . Impact . | . . . Kinetic . | . . . Secondary . | . . . Self-Inflicted Damage 9 | . 9 . Shots 1 | . 1 . Rammed . | . . . Targets Rammed . | . . . Kicked . | . . . Crushed . | . . . Highest Temperature 270 | 270 205 . Average Temperature 63 | 136 47 . Received Heat Transfer 138 | . 72 66 Effects 1 | 1 . . Energy Bleed 1 | 1 . . Siege Activations . | . . . Robots Corrupted . | . . . Combat Hostiles . | . . . Parts Fried . | . . . Impact Corruptions . | . . . Robots Melted . | . . . Combat Hostiles . | . . . Parts Melted 5 | 1 4 . Heat Transferred 2592 | 335 1813 444 Parts Sabotaged . | . . . Parts Stolen . | . . . Parts Stripped . | . . . Power Chain Reactions . | . . . Alert | -11 -10 -10 ------- Run | Yrd Mat Sub Peak Influence 318 | 25 318 . Initial 16 | . 16 . Average 196 | 12 209 . Maximum Alert Level 1 | . 1 . Low Security (%) 43 | 100 39 . Level 1 56 | . 60 . Level 2 . | . . . Level 3 . | . . . Level 4 . | . . . Level 5 . | . . . High Security . | . . . Max Security . | . . . Squads Dispatched 3 | . 3 . Investigation 1 | . 1 . Extermination . | . . . Reinforcement 2 | . 2 . Assault . | . . . Garrison . | . . . Intercept . | . . . Searches Triggered . | . . . Construction Impeded . | . . . Haulers Reinforced . | . . . Active Scanning Responses . | . . . Cargo Convoy Interrupts . | . . . Stealth | -11 -10 -10 --------- Run | Yrd Mat Sub Distress Signals 1 | . 1 . Communications Jammed . | . . . Distress Signals . | . . . Times Spotted 32 | . 26 6 Peak Tracking Total 6 | . 6 2 Tactical Retreats 1 | . 1 . Traps | -11 -10 -10 ------- Run | Yrd Mat Sub Traps Triggered 2 | . 2 . Indirectly . | . . . Trap Hack Attempts . | . . . Triggered . | . . . Disarmed . | . . . Reprogrammed . | . . . Reused . | . . . Traps Extracted . | . . . Installed . | . . . Triggered . | . . . Machines | -11 -10 -10 ---------- Run | Yrd Mat Sub Machines Disabled 7 | . 7 . Max in Single Turn 2 | . 2 . Machines Repaired . | . . . Machines Dismantled . | . . . Machines Sabotaged . | . . . Overloaded Fab Kills . | . . . Hacking | -11 -10 -10 --------- Run | Yrd Mat Sub Machines Accessed 8 | . 8 . Terminals 5 | . 5 . Fabricators . | . . . Repair Stations 1 | . 1 . Recycling Units 2 | . 2 . Scanalyzers . | . . . Garrison Access . | . . . Total Hacks 25 | . 25 . Successful 10 | . 10 . Failed 15 | . 15 . Catastrophic 2 | . 2 . Database Lockouts . | . . . Manual 15 | . 15 . Terminals 13 | . 13 . Fabricators . | . . . Repair Stations 4 | . 4 . Recycling Units 8 | . 8 . Scanalyzers . | . . . Garrison Access . | . . . Terminal Hacks 2 | . 2 . Prototype ID Bank 2 | . 2 . Fabricator Hacks . | . . . Repair Station Hacks 2 | . 2 . Scan Component 1 | . 1 . Repair 1 | . 1 . Recycling Unit Hacks 2 | . 2 . Retrieve Components 2 | . 2 . Scanalyzer . | . . . Garrison Access Hacks . | . . . Unauthorized Hacks 4 | . 4 . Terminals . | . . . Fabricators . | . . . Repair Stations . | . . . Recycling Units 4 | . 4 . Monitor 1 | . 1 . Recyclers 1 | . 1 . Mask 2 | . 2 . Scanalyzers . | . . . Garrison Access . | . . . Data Cores Recovered . | . . . Used . | . . . Hacking Detections 5 | . 5 . Full Trace Events . | . . . Feedback Events . | . . . Feedback Blocked . | . . . Robot Schematics Acquired . | . . . Robots Built . | . . . Authchips . | . . . Time . | . . . Total Robot Build Rating . | . . . Part Schematics Acquired . | . . . Parts Built . | . . . Authchips . | . . . Time . | . . . Total Part Build Rating . | . . . Parts Repaired 1 | . 1 . Time 26 | . 26 . Parts Recycled . | . . . Recycled Matter . | . . . Retrieved Matter . | . . . Retrieved Components 4 | . 4 . Parts Scanalyzed . | . . . Part Schematics Acquired . | . . . Parts Damaged . | . . . Bothacking | -11 -10 -10 ------------ Run | Yrd Mat Sub Used RIF Installer . | . . . Robots Hacked . | . . . Non-combat . | . . . Combat . | . . . Robot Hacks Applied . | . . . Relay Couplers Released . | . . . Fabnet Peak Effective % . | . . . Robots Rewired . | . . . Allies Hacked . | . . . Hacks Repelled . | . . . Allies | -11 -10 -10 -------- Run | Yrd Mat Sub Total Allies . | . . . Largest Group . | . . . Highest-Rated Group . | . . . Highest-Rated Ally . | . . . Total Orders . | . . . Ally Attacks . | . . . Total Damage . | . . . Kills . | . . . Allies Corrupted . | . . . Allies Melted . | . . . Intel | -11 -10 -10 ------- Run | Yrd Mat Sub Robot Analysis Total . | . . . Derelict Logs Recovered . | . . . Drone Launches . | . . . Drone Recoveries . | . . . Exploration | -11 -10 -10 ------------- Run | Yrd Mat Sub Turns Passed 2308 | 126 1758 424 Spaces Moved 1426 | 91 1173 162 Core 5 | 5 . . Treads 74 | . 3 71 Legs . | . . . Wheels 1347 | 86 1170 91 Hover . | . . . Flight . | . . . Fastest Speed 50 | 50 90 135 Average Speed 130 | 87 122 217 Slowest Speed 320 | 90 320 320 Overloaded Moves . | . . . Propulsion Burnouts . | . . . Robots Hopped . | . . . Cave-ins Triggered . | . . . Exploration Rate (%) 39 | 4 100 13 Regions Visited 2 Branch Regions 1 Pre-discovered Areas . | . . . Known Exits Taken . | . . . Unknown Exits Taken 2 | 1 1 . Scrap Searched 1 | . . 1 Spaces Dug 29 | . 29 . Terrain Destroyed 232 | . 189 43 Melee . | . . . Projectile . | . . . AOE 232 | . 189 43 Terrain Rammed . | . . . Walls Destroyed . | . . . Machines Disabled . | . . . Actions | -11 -10 -10 --------- Run | Yrd Mat Sub Total 1681 | 117 1367 197 Wait 68 | . 64 4 Move 1424 | 90 1172 162 Hop . | . . . Pick Up 29 | 10 19 . Fast Attach 10 | 6 4 . Attach 3 | . 2 1 Detach 1 | . 1 . Swap 22 | . 15 7 Drop 11 | 2 9 . Fire 113 | 9 81 23 Melee . | . . . Ram . | . . . Kick . | . . . Crush . | . . . Escape Stasis . | . . . Rewire . | . . . Trap . | . . . Miscellaneous . | . . . Route ------- -11/Scrapyard -10/Materials (discovered 6 exits: [*Mat x3] / [*Min x2] / [*Sub]) -10/Subcaves History --------- Turn | Location | Event 15 | -11/Scrapyard | Discovered new exit (range 15) 127 | -11/Scrapyard | Entered Materials 317 | -10/Materials | Build established: Mutant 320 | -10/Materials | Discovered new exit (range 14) 631 | -10/Materials | Discovered new exit (range 10) 815 | -10/Materials | Discovered new exit (range 16) 1136 | -10/Materials | Repaired Med. Laser? 1187 | -10/Materials | Discovered new exit (range 12) 1229 | -10/Materials | Discovered new exit (range 8) 1458 | -10/Materials | Discovered new exit (range 3) 1885 | -10/Materials | Entered Subcaves 1968 | -10/Subcaves | A swath of the cavern ceiling suddenly collapsed 2282 | -10/Subcaves | Ambushed by Subdweller buried in earth 2302 | -10/Subcaves | Core integrity fell below 50% 2306 | -10/Subcaves | Core integrity fell below 20% 2309 | -10/Subcaves | Destroyed by 0O-JER(R) with Subdweller Laser Last Messages --------------- 02015_ 5W-WBP(R) destroyed. 02042_ Destroyed Scrap Shield. 02045_ OR-ZWS(R) destroyed. 02047_ Subatomizers dissect the Sub. Power Source. 02054_ Acquired 4 matter. 02058_ Subatomizers dissect the Sub. Power Source. 02067_ Acquired 17 matter. 02069_ Subatomizers dissect the Sub. Power Source. 02200_ Destroyed Scrap Shield. 02204_ NS-5S2(R) destroyed. 02205_ The unstable cave ceiling collapses. 02262_ ME-C8B(R) destroyed. 02283_ 0O-JER(R): "ARGHSUB!" 02283_ Ion Engine destroyed. 02293_ 0O-JER(R) suffers critical hit (Burn). 02297_ The unstable cave ceiling collapses. 02301_ Lgt. Treads destroyed. Map ----- +----------------------------------------------------+ | #?????????????????????????????????????????????? | | #?????????????????????????????????????????????? | | #?????????????????????????????????????????????? | | ##?????????????????????????????????????????????? | | ##??????????????????????????????????????????????? | | ######??????????????????????????????????????????? | | ##?????????????????????????????????????????? | | #?????????????????????????????????????????? | | ###?????????????????????????????????????????? | | #???????????????????????????????????????????? | | ###??????? ???????#""""" ?????????????????????? | | ###???????? ?????#""""" ????????????????????? | | #???????## ????#""""" " ????????????????????? | | #???????? ???#" " """????????????????????? | | ########??## #??#" " """???? ??????????????? | | #?# #??# ### " ###?" #???????????? | | ###?? ##?# " #; #"" ???????????? | | ##????# #??#"" # """ # ??????????? | | ##????# ##??# ?????????? | | ######" #???# ; # ?????????? | | " #?????# R ?????????? | | ## " "##???# R #???????????? | | ## * ###?# # #???????????? | | ?# ### # ####???????????? | | ?# # #?##??????????????? | | ?# " &" @ #??????????????????? | | ?# #??????????????????? | | ## " " ! ; ;#??????????????????? | | # " ##